Cogmind - Beta 14 @@@ ROGUE MODE // 2024.10.02 @ 20:43:34 Player: SnaveSutit Result: Destroyed by Y-45 Defender with Heavy Assault Rifle Performance ------------- Evolutions (1) 500 Regions Visited (4) 800 Robots Destroyed (21) 105 Value Destroyed (514) 514 Prototype IDs (3) 60 Alien Tech Used (0) 0 Bonus (-375) -375 TOTAL SCORE: 1604 Bonus ------- Follower Combat Kills 208 Friendly Fire -583 Cogmind --------- Core Integrity 0/400 Matter 7/300 Energy 100/100 System Corruption 4% Temperature Cool (10) Movement Flying (40) Location -9/Storage Parts ------- > --- POWER (1) -------- (None) > --- PROPULSION (2) --- Improved Flight Unit > --- UTILITY (4) ------ (None) > --- WEAPON (2) ------- (None) > --- INVENTORY (5) ---- Light Treads High-capacity Storage Unit Seismic Detector Drone Bay (2/2) Peak State ------------ > --- POWER ------------ Light Nuclear Core > --- PROPULSION ------- Light Treads Light Treads > --- UTILITY ---------- High-capacity Storage Unit Signal Interpreter Terrain Scan Processor Drone Bay > --- WEAPON ----------- Heavy Assault Rifle Grenade Launcher > --- INVENTORY -------- Light Ion Engine Heavy Ion Engine Light Treads Improved Flight Unit Improved Flight Unit Heat Sink Improved Heat Sink High-capacity Storage Unit Visual Processing Unit Terrain Scanner Seismic Detector Seismic Detector Core Shielding Drone Bay Drone Bay Drone Bay Light Assault Rifle Light Assault Rifle Rocket Launcher Mini Grenade Launcher [Rating: 21] Favorites ----------- Power Light Ion Engine Engine Light Ion Engine Power Core Light Nuclear Core Propulsion Light Treads Treads Light Treads Flight Unit Improved Flight Unit Utility High-capacity Storage Unit Device Seismic Detector Storage High-capacity Storage Unit Processor Signal Interpreter Weapon Light Assault Rifle Energy Gun Medium Laser Ballistic Gun Light Assault Rifle Launcher Grenade Launcher Slashing Weapon Mining Claw Build | -11 -10 -10 -9 -9 ------- Run | Yrd Mat Min Mat Sto Slots Evolved 2 | . . . 2 . Power . | . . . . . Propulsion . | . . . . . Utility 2 | . . . 2 . Weapon . | . . . . . Parts Attached 39 | 1 11 . 16 11 Power 2 | . 1 . . 1 Engine 1 | . 1 . . . Core 1 | . . . . 1 Reactor . | . . . . . Propulsion 6 | . 3 . 2 1 Treads 5 | . 3 . 2 . Leg . | . . . . . Wheel . | . . . . . Hover . | . . . . . Flight 1 | . . . . 1 Utility 16 | . 5 . 7 4 Device 11 | . 2 . 5 4 Storage 2 | . 2 . . . Processor 3 | . 1 . 2 . Hackware . | . . . . . Protection . | . . . . . Artifact . | . . . . . Weapon 15 | 1 2 . 7 5 Energy Gun 2 | 1 . . 1 . Energy Cannon . | . . . . . Ballistic Gun 6 | . 2 . 3 1 Ballistic Cannon . | . . . . . Launcher 5 | . . . 3 2 Special Weapon . | . . . . . Impact Weapon . | . . . . . Slashing Weapon 2 | . . . . 2 Piercing Weapon . | . . . . . Special Melee Weapon . | . . . . . Unidentified Prototypes 1 | . . . . 1 Parts Lost 3 | . . . . 3 Power . | . . . . . Propulsion 2 | . . . . 2 Utility . | . . . . . Weapon 1 | . . . . 1 Highest Loss Streak 3 | . . . . 3 To Critical Strikes . | . . . . . Average Slot Usage (%) 96 | . 99 100 96 89 Engine 11 | . 14 14 11 6 Treads 24 | . 28 28 22 19 Device 5 | . 3 . 7 9 Storage 12 | . 13 14 11 9 Processor 16 | . 10 14 22 19 Energy Gun 6 | . 13 . 6 . Ballistic Gun 14 | . 14 28 14 6 Launcher 2 | . . . 1 10 Peak Build Rating 21 | 1 8 9 14 21 Average Rating 11 | . 7 8 12 16 On Entrance 6 | . 1 8 9 13 Naked Turns 43 | . . . . 43 Heaviest Build 55 | 2 47 46 50 55 Greatest Support 40 | 3 40 40 40 40 Greatest Overweight (x) 2 | . 1 1 1 2 Average Overweight (x) . | . . 1 1 . Largest Inventory Capacity 20 | 5 20 20 20 20 Average Capacity 19 | 5 19 20 20 18 Most Carried 20 | 5 15 20 19 20 Average Carried 14 | 3 9 17 16 17 Final Capacity 20 | 5 20 20 20 5 Final Carried 17 | 5 15 16 17 4 Class Distribution -------------------- 100% | Mutant Dominant Class ---------------- Mutant | -10/Materials Mutant | -10/Mines Mutant | -9/Materials Mutant | -9/Storage Resources | -11 -10 -10 -9 -9 ----------- Run | Yrd Mat Min Mat Sto Matter Collected 731 | 206 131 10 271 113 Remotely . | . . . . . Salvage Created 627 | . 227 . 288 112 Parts 43 | . 16 . 14 13 Haulers Intercepted 2 | . 1 . 1 . Recyclers Shooed 1 | . . . . 1 Parts Field Recycled . | . . . . . Retrieved Matter . | . . . . . Parts Self-Destructed . | . . . . . Prevented . | . . . . . Kills | -11 -10 -10 -9 -9 ------- Run | Yrd Mat Min Mat Sto Combat Hostiles Destroyed 11 | . 4 . 5 2 Guns 6 | . 4 . 2 . AOE 5 | . . . 3 2 Classes Destroyed 9 | . 5 . 1 3 Worker 1 | . . . . 1 Builder 2 | . . . . 2 Hauler 2 | . 1 . 1 . Mechanic 1 | . 1 . . . Drone 2 | . . . . 2 Watcher 2 | . 1 . . 1 Swarmer 2 | . 2 . . . Grunt 6 | . 2 . 4 . Sentry 5 | . . . 3 2 Best Kill Streak 3 | . 3 . 3 2 Combat Bots Only 2 | . 2 . 2 1 Max Kills in Single Turn 3 | . 1 . 3 3 Gunslinging . | . . . . . Exploded 1 | . . . 1 1 Melee . | . . . . . Uniques/NPCs Destroyed . | . . . . . Combat | -11 -10 -10 -9 -9 -------- Run | Yrd Mat Min Mat Sto Hostile Shots Fired 131 | . 27 . 44 60 Missed 38 | . 12 . 11 15 Damage Taken 1455 | . 178 . 505 772 Core 444 | . 39 . 89 316 Absorbed by Shields . | . . . . . Regen/Repaired (Parts) 44 | . . . 13 31 Core Remaining (%) 92 | 100 . 84 . . Volleys Fired 70 | . 27 . 21 22 Largest 2 | . 2 . 2 2 Hottest 70 | . 70 . 53 53 Shots Fired 121 | . 53 . 40 28 Gun 94 | . 53 . 31 10 Cannon . | . . . . . Launcher 27 | . . . 9 18 Special . | . . . . . Kinetic 68 | . 27 . 31 10 Thermal 26 | . 26 . . . Explosive 27 | . . . 9 18 Electromagnetic . | . . . . . Robot Hit Streak 9 | . 7 . 9 6 Robot Miss Streak 6 | . 6 . 3 2 Penetration Max . | . . . . . Secondary Targets . | . . . . . Shots Hit Robots 70 | . 31 . 22 17 Core Hits 53 | . 15 . 21 17 Critical Kills 1 | . . . . 1 Critical Parts Destroyed . | . . . . . Critical Strikes 3 | . 2 . . 1 Burn 2 | . 2 . . . Destroy 1 | . . . . 1 Melee Attacks . | . . . . . Impact . | . . . . . Slashing . | . . . . . Piercing . | . . . . . Sneak Attacks . | . . . . . Combat Hostiles . | . . . . . Follow-up Attacks . | . . . . . Damage Inflicted 1436 | . 346 . 572 518 Guns 670 | . 346 . 224 100 Cannons . | . . . . . Explosions 766 | . . . 348 418 Melee . | . . . . . Ramming . | . . . . . Kinetic 472 | . 148 . 224 100 Thermal 198 | . 198 . . . Explosive 766 | . . . 348 418 Electromagnetic . | . . . . . Impact . | . . . . . Slashing . | . . . . . Piercing . | . . . . . Highest Corruption 4 | . . . 4 4 Average Corruption 3 | . . . 3 4 Corruption Purged . | . . . . . Corruption Blocked . | . . . . . Effects 26 | . . . 2 24 Message Errors 5 | . . . . 5 Matter Fused 5 | . . . 1 4 Heat Flow Errors 3 | . . . . 3 Energy Discharges 3 | . . . . 3 Data Loss (minor) 5 | . . . . 5 Data Loss (major) 1 | . . . . 1 Misfires 2 | . . . 1 1 Alerts 1 | . . . . 1 Weapon Failures 1 | . . . . 1 Overload Shots . | . . . . . Overflow Damage . | . . . . . Projectiles . | . . . . . Explosions . | . . . . . Melee . | . . . . . Knockbacks . | . . . . . Impact . | . . . . . Kinetic . | . . . . . Secondary . | . . . . . Self-Inflicted Damage 189 | . . . 66 123 Shots 9 | . . . 2 7 Rammed . | . . . . . Targets Rammed . | . . . . . Kicked . | . . . . . Crushed . | . . . . . Highest Temperature 263 | . 219 . 24 263 Average Temperature 63 | . 64 . 9 82 Received Heat Transfer 564 | . 69 . 234 261 Siege Activations . | . . . . . Robots Corrupted . | . . . . . Combat Hostiles . | . . . . . Parts Fried . | . . . . . Impact Corruptions . | . . . . . Robots Melted . | . . . . . Combat Hostiles . | . . . . . Parts Melted 1 | . 1 . . . Heat Transferred 740 | . 740 . . . Parts Sabotaged . | . . . . . Parts Stolen . | . . . . . Parts Stripped . | . . . . . Power Chain Reactions . | . . . . . Alert | -11 -10 -10 -9 -9 ------- Run | Yrd Mat Min Mat Sto Peak Influence 259 | . 73 23 259 172 Initial 24 | . . . . 24 Average 55 | . 12 1 110 61 Maximum Alert Level 1 | . . . 1 . Low Security (%) 93 | 100 100 100 79 100 Level 1 6 | . . . 20 . Level 2 . | . . . . . Level 3 . | . . . . . Level 4 . | . . . . . Level 5 . | . . . . . High Security . | . . . . . Max Security . | . . . . . Squads Dispatched 5 | . . . 3 2 Investigation 2 | . . . 2 . Extermination . | . . . . . Reinforcement 1 | . . . 1 . Assault . | . . . . . Garrison 2 | . . . . 2 Intercept . | . . . . . Searches Triggered . | . . . . . Construction Impeded . | . . . . . Haulers Reinforced . | . . . . . Active Scanning Responses . | . . . . . Cargo Convoy Interrupts . | . . . . . Stealth | -11 -10 -10 -9 -9 --------- Run | Yrd Mat Min Mat Sto Distress Signals 3 | . 1 . 1 1 Communications Jammed . | . . . . . Distress Signals . | . . . . . Times Spotted 34 | . 11 . 15 8 Peak Tracking Total 4 | . 4 . 3 3 Tactical Retreats 1 | . . . . 1 Traps | -11 -10 -10 -9 -9 ------- Run | Yrd Mat Min Mat Sto Traps Triggered 2 | . . . 2 . Indirectly . | . . . . . Trap Hack Attempts . | . . . . . Triggered . | . . . . . Disarmed . | . . . . . Reprogrammed . | . . . . . Reused . | . . . . . Traps Extracted . | . . . . . Installed . | . . . . . Triggered . | . . . . . Machines | -11 -10 -10 -9 -9 ---------- Run | Yrd Mat Min Mat Sto Machines Disabled 6 | . . . 2 4 Max in Single Turn 1 | . . . 1 1 Machines Repaired . | . . . . . Machines Dismantled . | . . . . . Machines Sabotaged . | . . . . . Overloaded Fab Kills . | . . . . . Hacking | -11 -10 -10 -9 -9 --------- Run | Yrd Mat Min Mat Sto Machines Accessed 11 | . 4 . 3 4 Terminals 7 | . 3 . 1 3 Fabricators . | . . . . . Repair Stations 2 | . . . 1 1 Recycling Units 2 | . 1 . 1 . Scanalyzers . | . . . . . Garrison Access . | . . . . . Total Hacks 32 | . 10 . 10 12 Successful 17 | . 4 . 6 7 Failed 15 | . 6 . 4 5 Catastrophic 1 | . . . 1 . Database Lockouts . | . . . . . Manual . | . . . . . Terminals 16 | . 7 . 2 7 Fabricators . | . . . . . Repair Stations 10 | . . . 5 5 Recycling Units 6 | . 3 . 3 . Scanalyzers . | . . . . . Garrison Access . | . . . . . Terminal Hacks 7 | . 3 . . 4 Record 1 | . . . . 1 Part Schematic 1 | . . . . 1 Prototype ID Bank 1 | . . . . 1 Open Door 1 | . . . . 1 Locate Traps 1 | . 1 . . . Dispatch Records 1 | . 1 . . . Registered Components 1 | . 1 . . . Fabricator Hacks . | . . . . . Repair Station Hacks 7 | . . . 4 3 Scan Component 4 | . . . 2 2 Repair 3 | . . . 2 1 Recycling Unit Hacks 3 | . 1 . 2 . Report Inventory 2 | . 1 . 1 . Retrieve Components 1 | . . . 1 . Scanalyzer . | . . . . . Garrison Access Hacks . | . . . . . Unauthorized Hacks . | . . . . . Terminals . | . . . . . Fabricators . | . . . . . Repair Stations . | . . . . . Recycling Units . | . . . . . Scanalyzers . | . . . . . Garrison Access . | . . . . . Data Cores Recovered . | . . . . . Used . | . . . . . Hacking Detections 7 | . 3 . 3 1 Full Trace Events 2 | . . . 2 . Feedback Events . | . . . . . Feedback Blocked . | . . . . . Robot Schematics Acquired . | . . . . . Robots Built . | . . . . . Authchips . | . . . . . Time . | . . . . . Total Robot Build Rating . | . . . . . Part Schematics Acquired 1 | . . . . 1 Parts Built . | . . . . . Authchips . | . . . . . Time . | . . . . . Total Part Build Rating . | . . . . . Parts Repaired 3 | . . . 2 1 Time 78 | . . . 52 26 Parts Recycled . | . . . . . Recycled Matter . | . . . . . Retrieved Matter . | . . . . . Retrieved Components 1 | . . . 1 . Parts Scanalyzed . | . . . . . Part Schematics Acquired . | . . . . . Parts Damaged . | . . . . . Bothacking | -11 -10 -10 -9 -9 ------------ Run | Yrd Mat Min Mat Sto Used RIF Installer . | . . . . . Robots Hacked . | . . . . . Non-combat . | . . . . . Combat . | . . . . . Robot Hacks Applied . | . . . . . Relay Couplers Released . | . . . . . Fabnet Peak Effective % . | . . . . . Robots Rewired . | . . . . . Allies Hacked . | . . . . . Hacks Repelled . | . . . . . Allies | -11 -10 -10 -9 -9 -------- Run | Yrd Mat Min Mat Sto Total Allies 3 | . . 3 . . Largest Group 3 | . . 3 3 . Highest-Rated Group 40 | . . 40 40 . Highest-Rated Ally 16 | . . 16 16 . Total Orders . | . . . . . Ally Attacks 36 | . . 1 35 . Total Damage 372 | . . 11 361 . Kills 9 | . . 1 8 . Allies Corrupted . | . . . . . Allies Melted . | . . . . . Intel | -11 -10 -10 -9 -9 ------- Run | Yrd Mat Min Mat Sto Robot Analysis Total . | . . . . . Derelict Logs Recovered . | . . . . . Drone Launches 2 | . . . . 2 Drone Recoveries . | . . . . . Exploration | -11 -10 -10 -9 -9 ------------- Run | Yrd Mat Min Mat Sto Turns Passed 3981 | 26 1336 418 1383 818 Spaces Moved 1078 | 40 282 169 261 326 Core 83 | 40 . . . 43 Treads 978 | . 282 169 261 266 Legs . | . . . . . Wheels . | . . . . . Hover . | . . . . . Flight 17 | . . . . 17 Fastest Speed 40 | 50 160 240 240 40 Average Speed 219 | 50 228 240 240 205 Slowest Speed 320 | 50 240 240 240 320 Overloaded Moves . | . . . . . Propulsion Burnouts . | . . . . . Robots Hopped . | . . . . . Cave-ins Triggered . | . . . . . Exploration Rate (%) 33 | 3 54 39 26 47 Regions Visited 4 Branch Regions 2 Pre-discovered Areas 1 | . . 1 . . Known Exits Taken 1 | . . . 1 . Unknown Exits Taken 3 | 1 1 1 . . Scrap Searched 1 | . . 1 . . Spaces Dug . | . . . . . Terrain Destroyed 188 | . . . 76 112 Melee . | . . . . . Projectile . | . . . . . AOE 188 | . . . 76 112 Terrain Rammed . | . . . . . Walls Destroyed . | . . . . . Machines Disabled . | . . . . . Actions | -11 -10 -10 -9 -9 --------- Run | Yrd Mat Min Mat Sto Total 2576 | 45 925 184 976 446 Wait 1328 | . 588 7 667 66 Move 1074 | 39 281 168 260 326 Hop . | . . . . . Pick Up 47 | 5 17 5 9 11 Fast Attach 2 | 1 . . . 1 Attach 13 | . 6 . 3 4 Detach 1 | . . . . 1 Swap 24 | . 5 . 13 6 Drop 17 | . 1 4 3 9 Fire 70 | . 27 . 21 22 Melee . | . . . . . Ram . | . . . . . Kick . | . . . . . Crush . | . . . . . Escape Stasis . | . . . . . Rewire . | . . . . . Trap . | . . . . . Miscellaneous . | . . . . . Route ------- -11/Scrapyard -10/Materials -10/Mines -9/Materials -9/Storage History --------- Turn | Location | Event 4 | -11/Scrapyard | Discovered new exit (range 15) 27 | -11/Scrapyard | Entered Materials 311 | -10/Materials | Build established: Mutant 1318 | -10/Materials | Discovered new exit (range 14) 1363 | -10/Materials | Entered Mines 1368 | -10/Mines | Met a Derelict bent on vengeance 1496 | -10/Mines | Assisted by bots powering up and referring to "LRC-V3" 1700 | -10/Mines | Discovered new exit (range 3) 1706 | -10/Mines | Learned location of Storage (-9) 1709 | -10/Mines | Received a Rocket Launcher from a helpful Derelict 1781 | -10/Mines | Entered Materials 1781 | -9/Materials | Accompanied by 3 allies 1781 | -9/Materials | Evolved 2 slots: Utility x2 2057 | -9/Materials | Repaired Seismic Detector 2083 | -9/Materials | Repaired Terrain Scanner? 3144 | -9/Materials | Discovered new exit (range 5) 3159 | -9/Materials | Identified exit to Storage 3164 | -9/Materials | Entered Storage 3728 | -9/Storage | Repaired Mining Claw? 3882 | -9/Storage | Garrison activated, responded to threat 3908 | -9/Storage | Released all parts (7) 3938 | -9/Storage | Lost 3 parts (2n1w) 3970 | -9/Storage | Core integrity fell below 50% 3979 | -9/Storage | Core integrity fell below 20% 3982 | -9/Storage | Destroyed by Y-45 Defender with Heavy Assault Rifle Last Messages --------------- 03908_ U-05 Engineer lays Concrete. 03908_ Released Terrain Scanner. 03908_ Released Mni. Grenade Launcher. 03908_ Released Signal Interpreter. 03908_ Released Hcp. Storage Unit. 03908_ Released Terrain Scan Processor. 03908_ Released Lgt. Nuclear Core. 03908_ Released Hvy. Assault Rifle. 03909_ U-05 Engineer builds a Wall. 03909_ U-05 Engineer lays Concrete. 03911_ Acquired 12 matter. 03911_ U-05 Engineer lays Concrete. 03911_ U-05 Engineer builds a Wall. 03911_ U-05 Engineer lays Concrete. 03930_ System corrupted: Energy discharge (-30). 03948_ System corrupted: Component data lost. 03951_ Identified Imp. Flight Unit. 03973_ Critical hit (Burn: +37). 03975_ A9=IE8CAAXWUZTF7EB3O6:YO>JGM&ZED 03981_ Critical hit (Burn: +37). Map ----- +----------------------------------------------------+ | ???????????????????# # *![!!! #??? | | ??????????????????## # ##!]!=!! ##? | | ?????????????????## [!####+##### | | ?????????????????#T * = | | ????????????????###""# ! | | ?????????????????#? # | | ???????????????????? # ###/####### | | ??????????????????#??# # # ## # | | ????????????????????#### #### # | | ??????????????????????## ##?# # | | ??????????????????????## ##?# # | | ???????????????????????# #?## # | | ?????????????????????#?# #?## # | | ???????????????????????# ##?# # | | ????????????????????#??# #### # | | ??????????????????#????# + # | | ???????????????????##??# ##+####### | | ??????????????????????## ## | | ?????????????########### ## | | ?????????????# # """ ""## T" | | ?????????????# "??" # """ T"## "" | | ?????????????# "???" # """ ""## | | ?????????????# "???"" + ## | | ?????????????#Y""???" # #####+# | | ?????????????# "" " # | | ?????????????# @ """" # ##+##### # | | ?????????????# Y + ## T?#?# # | | ?????????????############+###+##"#??## # | | ????????????????????#? ?? #? ##### # | | ?????????????????????? ?? ?""??##?##?# # | | ??????????????????????? ? "???#####?## | | ????????????????????????? ????#??#?##### | | ??????????????????????? ?? ?? ###?###### | | ???????????????????????? ""? ?##??#??## | | ????????????????????????????? ?#######?# | | ????????????????????????????"?##?####?## | | ???????????????????????????? #?##?#?#?? | | ???????????????????????????#?#?????####? | | ???????????????????????????????????#???# | | ????????????????????????????????????#?## | | | | | | | | | | | | | | | | | | | | | +----------------------------------------------------+ Best States ------------- Heat Dissipation 28 Energy Generation 14 Energy Capacity 160 Matter Stores 300 Matter Capacity 300 Sight Range 16 Terrain Scan Range 14 Terrain Scan Density 85 Evasion (%) 62 Recoil Reduction 2 Item Schematics ----------------- Cryofiber Web | -9/Storage | Hacked Robot Schematics ------------------ None Fabricated ------------ Nothing Alien Tech Used ----------------- None Achievements -------------- None Challenges ------------ None Game ------ Seed TractorLayeredBeam Manual? 0 Play Time 00:34:37 Cumulative 13.7 hours Start 2024.10.02 @ 20:00:29 End 2024.10.02 @ 20:43:34 Sessions 1 Manual Loads 0 Difficulty Rogue Special Mode None Game No. 20 Rogue 20 Adventurer 0 Explorer 0 Win Type - Total 0 Types 0/0/0/0/0/0/0/0/0 Lore% 12 Gallery% 21 Achievement% 18 Wizard Run 0 Options --------- Layout 1 ASCII 0 Keyboard 0 Movement Mouse Keybinds 0 Fullscreen 1 Font 32/SmallcapsGlow Map View 50x40 Zoom Use 0% Tactical HUD 1 Map Filters NONE Filters NONE Steam 1 RUN: 293e85d2-600b-408e-b50d-158b9c2c2619